fUSD/lending_fUSD_20260319
["ID","MTS","AMOUNT","RATE_DAILY","PERIOD"]
[408551383,1773883861880,10000.01,0.0001265,2]
[408551384,1773883861903,10000.01,0.0001265,2]
[408551385,1773883861932,1989.56890246,0.0001265,2]
[408551386,1773883862278,327.80934193,0.00030136,120]
[408551387,1773883865740,406.43751809,0.00030136,120]
[408551388,1773883866380,500.0,0.00030136,120]
[408551389,1773883868043,157.69862883,0.00030136,120]
[408551390,1773883870894,500.0,0.00030136,120]
[408551391,1773883872619,278.41640938,0.00030136,120]
[408551392,1773883873714,340.12850651,0.00030136,120]
[408551393,1773883875866,230.77413266,0.00030136,120]
[408551394,1773883876675,172.5888523,0.00030136,120]
[408551395,1773883877197,1701.22,0.00030136,120]
[408551396,1773883887394,291.31811236,0.00030136,120]
[408551397,1773883889007,1142.02,0.00030136,120]
[408551398,1773883889277,251.16863191,0.00030136,120]
[408551399,1773883890137,1161.21,0.00030136,120]
[408551400,1773883892674,500.0,0.00030136,120]
[408551401,1773883896005,155.01741916,0.00030136,120]
[408551402,1773883896037,608.29515298,0.00030136,120]
[408551403,1773883898189,500.0,0.00030136,120]
[408551404,1773883899179,211.15036863,0.00030137,120]
[408551405,1773883900299,157.80975135,0.00030136,120]
[408551406,1773883901888,500.0,0.00030136,120]
[408551407,1773883902536,222.71891672,0.00030136,120]
[408551408,1773883907512,582.57,0.00030136,120]
[408551409,1773883908905,500.0,0.00030136,120]
[408551410,1773883909070,462.43262225,0.00030136,120]
[408551411,1773883910306,500.0,0.00030136,120]
[408551412,1773883912626,165.54364569,0.00030136,120]
[408551413,1773883917207,500.0,0.00030136,120]
[408551414,1773883918955,167.19411346,0.00030136,120]
[408551415,1773883920525,500.0,0.00030136,120]
[408551416,1773883922450,500.0,0.00030136,120]
[408551417,1773883926535,500.0,0.00030136,120]
[408551418,1773883927855,248.9425026,0.00030136,120]
[408551419,1773883929796,500.0,0.00030136,120]
[408551420,1773883929865,603.18022544,0.00030136,120]
[408551421,1773883931662,285.69047206,0.00030136,120]
[408551422,1773883931720,185.47459475,0.00030136,120]
[408551423,1773883931830,614.24,0.00030136,120]
[408551424,1773883935540,1472.12,0.00030136,120]
[408551425,1773883940163,500.0,0.00030136,120]
[408551426,1773883940265,500.0,0.00030136,120]
[408551427,1773883941429,446.62284639,0.00030136,120]
[408551428,1773883946127,657.17,0.00030136,120]
[408551429,1773883947273,328.99372794,0.00030136,120]
[408551430,1773883947323,150.08256946,0.00030136,120]
[408551431,1773883949440,500.0,0.00030136,120]
[408551432,1773883950211,3000.0,0.00030136,120]
[408551433,1773883951113,220.72308294,0.00030136,120]
[408551434,1773883954088,500.0,0.00030136,120]
[408551435,1773883954675,1510.73,0.00030136,120]
[408551436,1773883955403,1272.52,0.00030136,120]
[408551437,1773883956193,417.14394899,0.00030136,120]
[408551438,1773883957993,180.47809423,0.00030136,120]
[408551439,1773883958031,665.46,0.00030136,120]
[408551440,1773883958515,500.0,0.00030136,120]
[408551441,1773883960517,536.46790628,0.00030136,120]
[408551442,1773883961769,378.47999051,0.00030136,120]
[408551443,1773883964381,500.0,0.00030136,120]
[408551444,1773883964959,191.44101475,0.00030136,120]
[408551445,1773883965797,2004.01,0.00030136,120]
[408551446,1773883967195,177.88907942,0.00030136,120]
[408551447,1773883968402,165.51759929,0.00030136,120]
[408551448,1773883970417,166.90146178,0.00030136,120]
[408551449,1773883972298,245.8471949,0.00030136,120]
[408551450,1773883972392,500.0,0.00030136,120]
[408551451,1773883972695,1557.72,0.00030136,120]
[408551452,1773883973956,670.25,0.00030136,120]
[408551453,1773883973988,161.29642202,0.00030136,120]
[408551454,1773883975120,2915.2,0.00030136,120]
[408551455,1773883975959,300.81579129,0.00030136,120]
[408551456,1773883982399,159.65038746,0.00030136,120]
[408551457,1773883982538,267.90875128,0.00030136,120]
[408551458,1773883982759,165.83230368,0.00030136,120]
[408551459,1773883983136,1125.28135429,0.00030137,120]
[408551460,1773883983602,280.42216416,0.00030136,120]
[408551461,1773883991041,212.13784936,0.00030136,120]
[408551462,1773883994353,586.78,0.00030136,120]
[408551463,1773883998242,332.50542234,0.00030136,120]
[408551464,1773883998954,474.46708019,0.00030136,120]
[408551465,1773884000065,598.52315253,0.00030136,120]
[408551466,1773884003484,159.88554585,0.00030136,120]
[408551467,1773884006535,222.76394547,0.00030136,120]
[408551468,1773884011049,383.90425565,0.00030136,120]
[408551469,1773884012359,407.11754622,0.00030136,120]
[408551470,1773884014323,622.68478541,0.00030136,120]
[408551471,1773884015766,160.18678879,0.00030136,120]
[408551472,1773884017271,929.36,0.00030136,120]
[408551473,1773884018041,500.0,0.00030136,120]
[408551474,1773884018579,220.88951548,0.00030136,120]
[408551475,1773884020147,500.0,0.00030136,120]
[408551476,1773884020294,178.9042602,0.00030136,120]
[408551477,1773884023515,500.0,0.00030136,120]
[408551478,1773884027652,182.99082203,0.00030136,120]
[408551479,1773884028941,500.0,0.00030136,120]
[408551480,1773884032350,178.04276004,0.00030136,120]
[408551481,1773884035410,278.49634276,0.00030136,120]
[408551482,1773884037815,174.58379372,0.00030136,120]
[408551483,1773884042083,222.3152191,0.00030136,120]
[408551484,1773884049730,918.73,0.00030136,120]
[408551486,1773884053479,500.0,0.00030136,120]
[408551487,1773884053775,500.0,0.00030136,120]
[408551488,1773884059464,500.0,0.00030136,120]
[408551489,1773884061928,500.0,0.00030136,120]
[408551490,1773884064434,890.63,0.00030136,120]
[408551491,1773884067930,500.51,0.00030136,120]
[408551492,1773884068948,151.53288478,0.00030136,120]
[408551493,1773884070521,315.0810663,0.00030136,120]
[408551494,1773884076955,2448.0,0.00030136,120]
[408551495,1773884086977,38935.26,0.00030136,120]
[408551496,1773884088032,500.0,0.00030136,120]
[408551497,1773884088762,292.57677961,0.00030136,120]
[408551498,1773884102434,500.0,0.00030136,120]
[408551499,1773884104838,500.0,0.00030136,120]
[408551500,1773884106795,500.0,0.00030136,120]
[408551501,1773884108293,500.0,0.00030136,120]
[408551502,1773884109979,150.39956542,0.00030136,120]
[408551503,1773884116296,176.01632798,0.00030136,120]
[408551504,1773884117061,169.32298176,0.00030136,120]
[408551505,1773884121448,500.0,0.00030136,120]
[408551506,1773884125943,500.0,0.00030136,120]
[408551507,1773884127667,163.09255966,0.00030136,120]
[408551508,1773884129871,500.0,0.00030136,120]
[408551509,1773884137714,222.0,0.00030136,120]
[408551510,1773884142914,500.0,0.00030136,120]
[408551511,1773884145145,-41980.34,0.00011831,2]
[408551512,1773884145167,-554.07,0.00012,2]
[408551513,1773884145189,-1564.3402638,0.000125,3]
[408551514,1773884145212,-386.15585644,0.000125,2]
[408551515,1773884145236,-765.72054986,0.000125,2]
[408551516,1773884145258,-842.964716,0.000125,2]
[408551517,1773884145280,-300.0,0.00012521,2]
[408551518,1773884145301,-5761.266,0.00012522,2]
[408551519,1773884145322,-287.232,0.00012522,2]
[408551520,1773884145343,-9517.48555509,0.00012577,2]
[408551521,1773884145363,-396.55746938,0.00012577,2]
[408551522,1773884145385,-206.0594568,0.00012577,2]
[408551523,1773884145407,-7954.09235248,0.00012577,2]
[408551524,1773884145428,-406.58574539,0.00012577,2]
[408551525,1773884145450,-1078.26897251,0.0001265,2]
[408551526,1773884145471,-502.57556868,0.00012673,2]
[408551527,1773884145494,-500.0,0.00012673,2]
[408551528,1773884145516,-500.0,0.00012673,2]
[408551529,1773884145539,-150.0,0.00012676,2]
[408551530,1773884145561,-555.0,0.00012676,2]
[408551531,1773884145587,-555.0,0.00012676,2]
[408551532,1773884145609,-588.0,0.00012676,2]
[408551533,1773884145631,-855.0,0.00012676,2]
[408551534,1773884145654,-649.29507199,0.00012676,2]
[408551535,1773884145675,-280.38191262,0.00012676,2]
[408551536,1773884145706,-500.0,0.00012676,2]
[408551537,1773884145732,-500.0,0.00012676,2]
[408551538,1773884145755,-500.0,0.00012676,2]
[408551539,1773884145781,-500.0,0.00012676,2]
[408551540,1773884145804,-500.0,0.00012676,2]
[408551541,1773884145827,-152.6536403,0.00012676,2]
[408551542,1773884145849,-166.64962789,0.00012676,2]
[408551543,1773884145875,-500.0,0.00012676,2]
[408551544,1773884145902,-500.0,0.00012676,2]
[408551545,1773884145928,-500.0,0.00012676,2]
[408551546,1773884145954,-500.0,0.00012676,2]
[408551547,1773884145981,-500.0,0.00012676,2]
[408551548,1773884146006,-500.0,0.00012676,2]
[408551549,1773884146030,-500.0,0.00012676,2]
[408551550,1773884146055,-500.0,0.00012676,2]
[408551551,1773884146079,-500.0,0.00012676,2]
[408551552,1773884146104,-500.0,0.00012676,2]
[408551553,1773884146133,-500.0,0.00012676,2]
[408551554,1773884146160,-500.0,0.00012676,2]
[408551555,1773884146186,-500.0,0.00012676,2]
[408551556,1773884146211,-500.0,0.00012676,2]
[408551557,1773884146237,-500.0,0.00012676,2]
[408551558,1773884146509,-500.0,0.00012676,2]
[408551559,1773884146536,-500.0,0.00012676,2]
[408551560,1773884146562,-500.0,0.00012676,2]
[408551561,1773884146588,-500.0,0.00012676,2]
[408551562,1773884146615,-500.0,0.00012676,2]
[408551563,1773884146642,-500.0,0.00012676,2]
[408551564,1773884146665,-500.0,0.00012676,2]
[408551565,1773884146689,-500.0,0.00012676,2]
[408551566,1773884146715,-500.0,0.00012676,2]
[408551567,1773884146739,-500.0,0.00012676,2]
[408551568,1773884146762,-500.0,0.00012676,2]
[408551569,1773884146788,-500.0,0.00012676,2]
[408551570,1773884146812,-500.0,0.00012676,2]
[408551571,1773884146836,-500.0,0.00012676,2]
[408551572,1773884146860,-500.0,0.00012676,2]
[408551573,1773884146888,-500.0,0.00012676,2]
[408551574,1773884146914,-500.0,0.00012676,2]
[408551575,1773884146940,-500.0,0.00012676,2]
[408551576,1773884146964,-500.0,0.00012676,2]
[408551577,1773884146990,-500.0,0.00012676,2]
[408551578,1773884147017,-500.0,0.00012676,2]
[408551579,1773884147042,-500.0,0.00012676,2]
[408551580,1773884147068,-500.0,0.00012676,2]
[408551581,1773884147095,-500.0,0.00012676,2]
[408551582,1773884147122,-500.0,0.00012676,2]
[408551583,1773884147152,-500.0,0.00012676,2]
[408551584,1773884147178,-500.0,0.00012676,2]
[408551585,1773884147203,-500.0,0.00012676,2]
[408551586,1773884147228,-500.0,0.00012676,2]
[408551587,1773884147253,-500.0,0.00012676,2]
[408551588,1773884147278,-500.0,0.00012676,2]
[408551589,1773884147303,-500.0,0.00012676,2]
[408551590,1773884147328,-500.0,0.00012676,2]
[408551591,1773884147353,-500.0,0.00012676,2]
[408551592,1773884147378,-500.0,0.00012676,2]
[408551593,1773884147406,-345.35752722,0.00012676,2]
[408551594,1773884147431,-500.0,0.00012676,2]
[408551595,1773884147456,-500.0,0.00012676,2]
[408551596,1773884147481,-500.0,0.00012676,2]
[408551597,1773884147508,-500.0,0.00012676,2]
[408551598,1773884147532,-500.0,0.00012676,2]
[408551599,1773884147557,-500.0,0.00012676,2]
[408551600,1773884147581,-500.0,0.00012676,2]
[408551601,1773884147606,-500.0,0.00012676,2]
[408551602,1773884147630,-500.0,0.00012676,2]
[408551603,1773884147658,-500.0,0.00012676,2]
[408551604,1773884147683,-500.0,0.00012676,2]
[408551605,1773884147708,-500.0,0.00012676,2]
[408551606,1773884147733,-500.0,0.00012676,2]
[408551607,1773884147760,-500.0,0.00012676,2]
[408551608,1773884147789,-500.0,0.00012676,2]
[408551609,1773884147817,-400.0,0.00012676,2]
[408551610,1773884147843,-500.0,0.00012676,2]
[408551611,1773884147870,-500.0,0.00012676,2]
[408551612,1773884147898,-500.0,0.00012676,2]
[408551613,1773884147925,-500.0,0.00012676,2]
[408551614,1773884147951,-500.0,0.00012676,2]
[408551615,1773884147976,-500.0,0.00012676,2]
[408551616,1773884148001,-500.0,0.00012676,2]
[408551617,1773884148029,-500.0,0.00012676,2]
[408551618,1773884148055,-500.0,0.00012676,2]
[408551619,1773884148080,-500.0,0.00012676,2]
[408551620,1773884148106,-500.0,0.00012676,2]
[408551621,1773884148131,-500.0,0.00012676,2]
[408551622,1773884148170,-500.0,0.00012676,2]
[408551623,1773884148199,-500.0,0.00012676,2]
[408551624,1773884148227,-500.0,0.00012676,2]
[408551625,1773884148254,-250.00000001,0.00012676,2]
[408551626,1773884148281,-152.95255131,0.00012676,2]
[408551627,1773884148307,-500.0,0.00012676,2]
[408551628,1773884148333,-500.0,0.00012676,2]
[408551629,1773884148359,-152.95255131,0.00012676,2]
[408551630,1773884148384,-617743.04261092,0.00012677,2]
[408551631,1773884149208,-249.46150437,0.00012676,2]
[408551632,1773884149241,-282.13064288,0.00012676,2]
[408551633,1773884149815,169.85871921,0.00030136,120]
[408551634,1773884151485,500.0,0.00030136,120]
[408551635,1773884151688,487.38011927,0.00030136,120]
[408551636,1773884152430,-2640.56675272,0.00012577,2]
[408551637,1773884152582,155.0,0.00030136,120]
[408551638,1773884152621,-8706.94913906,0.00012677,2]
[408551639,1773884155391,-10000.01,0.00012677,2]
[408551640,1773884155491,-10000.01,0.00012677,2]
[408551641,1773884156670,500.0,0.00030136,120]
[408551642,1773884156897,500.0,0.00030136,120]
[408551643,1773884157125,500.0,0.00030136,120]
[408551644,1773884157345,500.0,0.00030136,120]
[408551645,1773884157390,163.26994267,0.00030136,120]
[408551646,1773884157573,500.0,0.00030136,120]
[408551647,1773884157815,509.79719058,0.00030136,120]
[408551648,1773884158477,-800.0,0.000126,4]
[408551649,1773884158510,-8400.01,0.00012677,2]
[408551650,1773884161236,586.37,0.00030136,120]
[408551651,1773884165085,255.0,0.00030136,120]
[408551652,1773884168568,500.0,0.00030136,120]
[408551653,1773884171903,186.65897635,0.00030136,120]
[408551654,1773884173290,500.0,0.00030136,120]
[408551655,1773884174521,500.0,0.00030136,120]
[408551656,1773884176393,558.3,0.00030136,120]
[408551657,1773884179810,267.00665542,0.00030136,120]
[408551668,1773884183416,555.0,0.00030136,120]
[408551669,1773884185424,629.78,0.00030136,120]
[408551670,1773884185468,637.74,0.00030136,120]
[408551671,1773884189615,333.0,0.00030136,120]
[408551672,1773884193108,241.18253223,0.00030136,120]
[408551673,1773884194757,444.0,0.00030136,120]
[408551674,1773884197049,500.0,0.00030136,120]
[408551675,1773884200573,1492.82,0.00030136,120]
[408551676,1773884200854,562.33,0.00030136,120]
[408551677,1773884203614,1410.78,0.00030136,120]
[408551678,1773884207505,615.9251,0.00030136,120]
[408551679,1773884211537,500.0,0.00030136,120]
[408551680,1773884220164,500.0,0.00030136,120]
[408551681,1773884225196,157.07397212,0.00030136,120]
[408551682,1773884225581,404.75138781,0.00030136,120]
[408551683,1773884231566,257.0,0.00030137,120]
[408551684,1773884237548,500.0,0.00030136,120]
[408551685,1773884250429,153.62522614,0.00030136,120]
[408551686,1773884254325,560.28,0.00030136,120]
[408551687,1773884260627,198.606,0.00030136,120]
[408551689,1773884268255,500.0,0.00030136,120]
[408551690,1773884284419,606.83,0.00030136,120]
[408551691,1773884286260,189.06655049,0.00030136,120]
[408551692,1773884287067,212.0,0.00030137,120]
[408551693,1773884287856,283.93121576,0.00030136,120]
[408551694,1773884296518,158.10883838,0.00030136,120]
[408551695,1773884298653,161.01082536,0.00030136,120]
[408551696,1773884321284,176.08232878,0.00030136,120]
[408551697,1773884327681,978.02,0.00030136,120]
[408551698,1773884329435,9733.81,0.00030136,120]
[408551699,1773884331297,500.0,0.00030136,120]
[408551700,1773884333410,707.62,0.00030136,120]
[408551701,1773884337481,500.0,0.00030136,120]
[408551702,1773884343127,1078.069,0.00030137,120]
[408551703,1773884344862,500.0,0.00030136,120]
[408551704,1773884347707,159.96749037,0.00030136,120]
[408551705,1773884349369,500.0,0.00030136,120]
[408551706,1773884349552,500.0,0.00030136,120]
[408551707,1773884361382,500.0,0.00030136,120]
[408551708,1773884367338,2402.43383709,0.00030136,120]
[408551709,1773884373054,500.0,0.00030136,120]
[408551710,1773884376253,1000.0,0.0003,120]
[408551711,1773884377943,535.04,0.00030136,120]
[408551712,1773884378789,162.76153612,0.00030136,120]
[408551713,1773884381076,1000.0,0.00030136,120]
[408551714,1773884385433,163.4468977,0.00030136,120]
[408551715,1773884386115,500.0,0.00030136,120]
[408551716,1773884387407,581.23,0.00030136,120]
[408551717,1773884387899,1000.0,0.00030136,120]
[408551718,1773884389528,500.0,0.00030136,120]
[408551719,1773884394409,1000.0,0.00030136,120]
[408551720,1773884396457,561.94,0.00030136,120]
[408551721,1773884406886,1352.0,0.00030136,120]
[408551722,1773884406935,153.42315708,0.00030136,120]
[408551723,1773884419597,603.54,0.00030136,120]
[408551724,1773884424132,163.82623041,0.00030136,120]
[408551725,1773884425654,154.72110128,0.00030136,120]
[408551726,1773884426873,550.43,0.00030136,120]
[408551727,1773884427184,611.16,0.00030136,120]
[408551728,1773884430532,500.0,0.00030136,120]
[408551729,1773884434501,500.0,0.00030136,120]
[408551730,1773884439049,1114.39,0.00030136,120]
[408551731,1773884442536,1430.62,0.00030136,120]
[408551732,1773884450180,500.0,0.00030136,120]
[408551733,1773884450392,538.9,0.00030136,120]
[408551734,1773884453940,971.92,0.00030136,120]
[408551735,1773884455430,1112.83,0.00030136,120]
[408551736,1773884461502,157.19503859,0.00030136,120]
[408551737,1773884463200,495.27133869,0.00030136,120]
[408551738,1773884475718,1630.34,0.00030136,120]
[408551739,1773884476396,605.55432054,0.00030136,120]
[408551740,1773884476440,500.0,0.00030136,120]
[408551741,1773884479737,500.0,0.00030136,120]
[408551742,1773884487155,200.0,0.00030137,120]
[408551743,1773884490860,1094.44,0.00030136,120]
[408551744,1773884497143,178.21519645,0.00030136,120]
[408551745,1773884498844,500.0,0.00030136,120]
[408551746,1773884502311,500.0,0.00030136,120]
[408551747,1773884503986,200.0000019,0.00030137,120]
[408551748,1773884510095,500.0,0.00030136,120]
[408551749,1773884516614,500.0,0.00030136,120]
[408551750,1773884517944,500.0,0.00030136,120]
[408551751,1773884521304,160.38513239,0.00030136,120]
[408551752,1773884532655,920.41,0.00030136,120]
[408551753,1773884540454,588.65,0.00030136,120]
[408551754,1773884541650,189.23732828,0.00030136,120]
[408551755,1773884545339,500.0,0.00030136,120]
[408551756,1773884547847,500.0,0.00030136,120]
[408551757,1773884551811,500.0,0.00030136,120]
[408551758,1773884552814,1219.5,0.00030136,120]
[408551759,1773884559732,1447.79,0.00030136,120]
[408551760,1773884560635,36907.39,0.00030136,120]
[408551761,1773884566603,165.45257731,0.00030136,120]
[408551762,1773884567975,642.32,0.00030136,120]
[408551763,1773884569724,500.0,0.00030136,120]
[408551764,1773884573989,2793.73,0.00030136,120]
[408551765,1773884581110,500.0,0.00030136,120]
[408551766,1773884589051,150.72555092,0.00030136,120]
[408551767,1773884610016,962.78,0.00030136,120]
[408551768,1773884612358,1217.51,0.00030136,120]
[408551769,1773884614501,-2000.0,0.000118,2]
[408551770,1773884614528,-208.84160071,0.00012188,2]
[408551771,1773884614556,-1200.0,0.00012576,2]
[408551772,1773884614582,-300.0,0.00012576,2]
[408551773,1773884614608,-253.0,0.00012576,2]
[408551774,1773884614634,-300.0,0.00012576,2]
[408551775,1773884614660,-150.0,0.00012576,2]
[408551776,1773884614789,-1434.27300041,0.00012576,2]
[408551777,1773884614846,-7131.46399918,0.00012576,2]
[408551778,1773884614854,-1176.32679858,0.00012577,2]
[408551779,1773884617399,-3821.21220142,0.00012577,2]
[408551780,1773884617428,-264.106,0.00012577,2]
[408551781,1773884617471,-1829.37359716,0.00012577,2]
[408551782,1773884618480,880.45,0.00030136,120]
[408551783,1773884620571,-500.0,0.00012356,2]
[408551784,1773884620600,-3670.70047991,0.00012577,2]
[408551785,1773884620634,-1658.60904018,0.00012577,2]
[408551786,1773884620669,-2310.49590863,0.00012577,2]
[408551787,1773884620695,-803.40203972,0.00012577,2]
[408551788,1773884620722,-264.37164626,0.00012577,2]
[408551789,1773884620748,-1143.65260203,0.00012577,2]
[408551790,1773884621018,-956.16560672,0.00012577,2]
[408551791,1773884621063,500.0,0.00030136,120]
[408551792,1773884624859,165.95390346,0.00030136,120]
[408551793,1773884625893,512.74,0.00030136,120]
[408551794,1773884628065,500.0,0.00030136,120]
[408551795,1773884633024,164.30144626,0.00030136,120]
[408551796,1773884642807,538.53,0.00030136,120]
[408551797,1773884643251,168.81975,0.00030136,120]
[408551798,1773884645508,161.22266646,0.00030136,120]
[408551799,1773884653119,152.82911223,0.00030136,120]
[408551800,1773884654872,500.0,0.00030136,120]
[408551801,1773884655622,1295.66,0.00030136,120]
[408551802,1773884656838,500.0,0.00030136,120]
[408551803,1773884666212,578.39,0.00030136,120]
[408551804,1773884668027,500.0,0.00030136,120]
[408551805,1773884670656,174.79,9.429e-05,2]
[408551806,1773884673586,500.0,0.00030136,120]
[408551807,1773884677159,500.0,0.00030136,120]
[408551808,1773884677900,500.0,0.00030136,120]
[408551809,1773884691948,585.7,0.00030136,120]
[408551810,1773884697697,516.44,0.00030136,120]
[408551811,1773884706789,1371.01,0.00030136,120]
[408551812,1773884708030,1111.11111111,0.00030137,120]
[408551813,1773884708362,500.0,0.00030136,120]
[408551814,1773884708652,1111.11111111,0.00030137,120]
[408551815,1773884708840,1111.11111111,0.00030137,120]
[408551816,1773884709009,1111.11111111,0.00030137,120]
[408551817,1773884709177,1111.11111111,0.00030137,120]
[408551818,1773884709345,1111.11111111,0.00030137,120]
[408551819,1773884709510,1111.11111111,0.00030137,120]
[408551820,1773884710394,1111.11111111,0.00030137,120]
[408551821,1773884710456,1111.11111111,0.00030137,120]
[408551822,1773884745175,500.0,0.00030136,120]
[408551823,1773884745881,500.0,0.00030136,120]
[408551824,1773884782351,351.42017978,0.00030136,120]
[408551825,1773884797649,500.0,0.00030136,120]
[408551826,1773884803154,500.0,0.00030136,120]
[408551827,1773884804429,35369.58,0.00030136,120]
[408551828,1773884807422,500.0,0.00030136,120]
[408551829,1773884819315,536.94,0.00030136,120]
[408551830,1773884824743,500.0,0.00030136,120]
[408551831,1773884826112,500.0,0.00030136,120]
[408551832,1773884863481,594.0,0.00030137,120]
[408551833,1773884870155,500.0,0.00030136,120]
[408551834,1773884870999,500.0,0.00030136,120]
[408551835,1773884874711,500.0,0.00030136,120]
[408551836,1773884894104,500.0,0.00030136,120]
[408551837,1773884894574,853.52,0.00030136,120]
[408551838,1773884909678,500.0,0.00030136,120]
[408551839,1773884909782,516.09,0.00030136,120]
[408551840,1773884914609,561.29,0.00030136,120]
[408551841,1773884919676,500.0,0.00030136,120]
[408551842,1773884929026,1313.88,0.00030136,120]
[408551843,1773884930652,500.0,0.00030136,120]
[408551844,1773884937668,500.0,0.00030136,120]
[408551845,1773884947499,500.0,0.00030136,120]
[408551846,1773884948934,557.01,0.00030136,120]
[408551847,1773884987955,500.0,0.00030136,120]
[408551848,1773884989968,500.0,0.00030136,120]
[408551849,1773884995577,500.0,0.00030136,120]
[408551850,1773885003209,527.5,0.00030136,120]
[408551851,1773885011757,500.0,0.00030136,120]
[408551852,1773885020772,931.42,0.00030136,120]
[408551853,1773885024268,500.0,0.00030136,120]
[408551856,1773885031444,-351.95748645,0.00012164,2]
[408551858,1773885031498,-7317.40733836,0.00012164,2]
[408551859,1773885031509,-2330.63517519,0.00012164,2]
[408551860,1773885031518,-313.70600364,0.0001254,2]
[408551861,1773885031527,-300.0,0.00012549,2]
[408551862,1773885031536,-1200.0,0.00012549,2]
[408551863,1773885031546,-318.20651103,0.0001255,2]
[408551864,1773885031558,-2245.88125224,0.0001255,2]
[408551865,1773885031577,-6262.91342666,0.0001255,2]
[408551866,1773885031609,-454.11874776,0.0001255,2]
[408551867,1773885031620,-2500.0,0.0001255,2]
[408551885,1773885032667,-4210.9484995,0.0001255,2]
[408551886,1773885034274,500.0,0.00030136,120]
[408551888,1773885037819,-20492.90150223,0.0001255,2]
[408551890,1773885037879,-677794.92945367,0.0001255,2]
[408551891,1773885037890,-25010.34298616,0.0001255,2]
[408551895,1773885039736,-644.20590704,0.0001255,2]
[408551898,1773885042680,-900.05641542,0.0001255,2]
[408551899,1773885042735,-506407.93396993,0.0001255,2]
[408551900,1773885042747,-2797.10962042,0.0001255,2]
[408551904,1773885045407,-3880.2192,0.0001255,2]
[408551905,1773885045461,-213225.0,0.0001255,2]
[408551906,1773885045486,-23273.11462269,0.0001255,2]
[408551909,1773885048368,1066.46,0.00030136,120]
[408551910,1773885054781,500.0,0.00030136,120]
[408551911,1773885057425,1048.84,0.00030136,120]
[408551912,1773885063345,33895.85,0.00030136,120]
[408551913,1773885067788,500.0,0.00030136,120]
[408551914,1773885069360,500.0,0.00030136,120]
[408551915,1773885069450,500.0,0.00030136,120]
[408551916,1773885069486,497.49770464,0.00030136,120]
[408551917,1773885077054,500.0,0.00030136,120]
[408551918,1773885083204,500.0,0.00030136,120]
[408551919,1773885084808,500.0,0.00030136,120]
[408551920,1773885085637,1562.41,0.00030136,120]
[408551921,1773885086016,500.0,0.00030136,120]
[408551922,1773885095471,500.0,0.00030136,120]
[408551923,1773885106437,564.12,0.00030136,120]
[408551924,1773885114191,500.0,0.00030136,120]
[408551925,1773885119195,500.0,0.00030136,120]
[408551926,1773885123107,500.0,0.00030136,120]